bitfinex/quotes_BTCUSD_20230907
["timestamp","ask_amount","ask_price","bid_price","bid_amount"]
[1694124603242,0.23694197,26296.0,26295.0,0.18191376]
[1694124603655,0.23694197,26296.0,26295.0,0.38191376]
[1694124608924,0.23694197,26296.0,26295.0,0.77046698]
[1694124609150,0.002,26296.0,26295.0,2.44606698]
[1694124609577,0.22705302,26296.0,26295.0,2.44606698]
[1694124609794,0.22705302,26296.0,26295.0,1.68546698]
[1694124610222,0.22705302,26296.0,26295.0,0.92486698]
[1694124610434,0.22705302,26296.0,26295.0,0.38191376]
[1694124611384,2.50876602,26296.0,26295.0,0.38191376]
[1694124611621,0.002,26296.0,26295.0,3.20666698]
[1694124612125,0.002,26296.0,26295.0,3.28592698]
[1694124612325,0.002,26296.0,26295.0,3.28166698]
[1694124612543,0.002,26296.0,26295.0,3.27230698]
[1694124612748,0.002,26296.0,26295.0,3.20666698]
[1694124612965,0.002,26296.0,26295.0,3.16806698]
[1694124614238,0.002,26296.0,26295.0,2.40746698]
[1694124615127,0.002,26296.0,26295.0,0.88626698]
[1694124615577,0.002,26296.0,26295.0,1.64686698]
[1694124616204,0.002,26296.0,26295.0,0.49771376]
[1694124616426,1.523142,26296.0,26295.0,0.29771376]
[1694124616870,1.523142,26296.0,26295.0,0.49771376]
[1694124617075,2.283713,26296.0,26295.0,0.29771376]
[1694124617344,2.283713,26296.0,26295.0,0.49771376]
[1694124617579,2.283713,26296.0,26295.0,0.29771376]
[1694124618463,1.523142,26296.0,26295.0,0.29771376]
[1694124619785,2.283713,26296.0,26295.0,0.29771376]
[1694124620606,2.283713,26296.0,26295.0,0.18191376]
[1694124620990,2.283713,26296.0,26295.0,0.29771376]
[1694124625030,2.283713,26296.0,26295.0,0.18191376]
[1694124625506,2.283713,26296.0,26295.0,0.20191376]
[1694124629986,2.283713,26296.0,26290.0,1.33493934]
[1694124629987,2.61092023,26296.0,26290.0,0.59854189]
[1694124630191,2.61092023,26296.0,26290.0,0.13493376]
[1694124630192,0.1158,26291.0,26290.0,0.13493376]
[1694124630409,3.19828529,26291.0,26290.0,0.13493376]
[1694124630616,3.042864,26291.0,26290.0,0.13493376]
[1694124631451,3.042864,26291.0,26290.0,0.021]
[1694124631676,3.24368314,26291.0,26290.0,0.021]
[1694124631888,3.24368314,26291.0,26290.0,0.023]
[1694124632093,3.26368314,26291.0,26290.0,0.082]
[1694124632304,3.24868314,26291.0,26290.0,0.081]
[1694124632450,3.24868314,26291.0,26290.0,0.082]
[1694124632689,3.25968314,26291.0,26290.0,0.082]
[1694124632889,3.25968314,26291.0,26290.0,0.097]
[1694124633102,3.27727256,26291.0,26290.0,0.097]
[1694124633297,3.27727256,26291.0,26290.0,0.13776611]
[1694124637687,3.27727256,26291.0,26290.0,0.02283235]
[1694124637688,3.46014694,26291.0,26290.0,0.02283235]
[1694124637893,3.39307256,26291.0,26290.0,0.02283235]
[1694124638301,3.39307256,26291.0,26290.0,0.13693376]
[1694124638508,3.39307256,26291.0,26290.0,0.097]
[1694124638966,3.39307256,26291.0,26290.0,0.13693376]
[1694124639165,3.27727256,26291.0,26290.0,0.13693376]
[1694124639371,3.27727256,26291.0,26290.0,0.13776574]
[1694124646594,3.27727256,26291.0,26290.0,0.02283198]
[1694124647153,3.27727256,26291.0,26290.0,0.022]
[1694124647355,3.27727256,26291.0,26290.0,0.13693376]
[1694124648648,3.27727256,26291.0,26290.0,0.022]
[1694124648911,3.39307256,26291.0,26290.0,0.022]
[1694124649561,3.78162578,26291.0,26290.0,0.002]
[1694124652383,4.54234178,26291.0,26290.0,0.002]
[1694124654850,4.63326187,26291.0,26290.0,0.002]
[1694124655290,4.54234178,26291.0,26290.0,0.002]
[1694124655502,4.9319547,26291.0,26290.0,0.002]
[1694124656133,4.84705565,26291.0,26286.0,0.095]
[1694124656351,0.1158,26288.0,26286.0,0.095]
[1694124656575,3.043328,26287.0,26286.0,0.095]
[1694124657020,3.043328,26287.0,26286.0,0.08]
[1694124657242,3.043328,26287.0,26286.0,0.081]
[1694124657457,3.26515664,26287.0,26286.0,0.081]
[1694124657670,3.26515664,26287.0,26286.0,0.08]
[1694124658094,3.045328,26287.0,26286.0,0.094]
[1694124658311,3.25143536,26287.0,26286.0,0.093]
[1694124658522,3.25343536,26287.0,26286.0,0.113]
[1694124659350,3.43694092,26287.0,26286.0,0.033]
[1694124659551,3.163128,26287.0,26286.0,0.033]
[1694124659816,3.37892065,26287.0,26286.0,0.033]
[1694124659988,3.55168122,26287.0,26286.0,0.033]
[1694124660399,3.55668122,26287.0,26286.0,0.033]
[1694124660600,3.77364938,26287.0,26286.0,0.033]
[1694124660816,4.1632623,26287.0,26286.0,0.033]
[1694124660998,3.94629414,26287.0,26286.0,0.033]
[1694124661416,3.69649158,26287.0,26286.0,0.033]
[1694124662335,3.30793836,26287.0,26286.0,0.033]
[1694124665349,3.69649158,26287.0,26286.0,0.033]
[1694124671485,3.81229158,26287.0,26286.0,0.033]
[1694124672441,3.55468122,26287.0,26286.0,0.02]
[1694124672674,3.96829414,26287.0,26286.0,0.021]
[1694124672900,3.57868122,26287.0,26286.0,0.021]
[1694124673155,3.55468122,26287.0,26286.0,0.02]
[1694124673380,3.57668122,26287.0,26286.0,0.001]
[1694124673817,3.60068122,26287.0,26286.0,0.003]
[1694124674032,3.57668122,26287.0,26286.0,0.001]
[1694124674313,3.79956092,26287.0,26286.0,0.001]
[1694124674976,3.82356092,26287.0,26286.0,0.003]
[1694124676140,4.21317384,26287.0,26286.0,0.003]
[1694124684578,4.30414846,26287.0,26286.0,0.003]
[1694124686204,4.08126876,26287.0,26286.0,0.003]
[1694124686446,4.27121215,26287.0,26286.0,0.003]
[1694124686679,4.36103256,26287.0,26286.0,0.003]
[1694124687128,3.97141964,26287.0,26286.0,0.003]
[1694124687517,4.01690695,26287.0,26286.0,0.003]
[1694124688028,4.10794106,26287.0,26286.0,0.003]
[1694124688265,3.82696356,26287.0,26286.0,0.003]
[1694124688727,4.00901186,26287.0,26281.0,0.02]
[1694124688955,0.1158,26283.0,26281.0,0.02]
[1694124689175,3.043908,26282.0,26281.0,0.02]
[1694124690035,3.043908,26282.0,26281.0,0.022]
[1694124690245,3.043908,26282.0,26281.0,0.02]
[1694124690664,3.56932092,26282.0,26281.0,0.022]
[1694124690879,3.179708,26282.0,26281.0,0.022]
[1694124691307,3.179708,26282.0,26281.0,0.023]
[1694124691739,3.75875389,26282.0,26281.0,0.022]
[1694124691979,4.16236681,26282.0,26281.0,0.003]
[1694124692217,4.28314398,26282.0,26281.0,0.003]
[1694124692922,4.19210418,26282.0,26281.0,0.003]
[1694124693157,4.28314398,26282.0,26281.0,0.003]
[1694124693456,3.58226122,26282.0,26281.0,0.003]
[1694124693726,0.025,26281.0,26276.0,0.2465]
[1694124693952,0.1158,26277.0,26276.0,0.2465]
[1694124694181,2.18201651,26277.0,26276.0,0.02]
[1694124694399,2.02659522,26277.0,26276.0,0.02]
[1694124694698,4.30995822,26277.0,26276.0,0.02]
[1694124695411,3.044484,26277.0,26276.0,0.02079456]
[1694124695892,3.075484,26277.0,26276.0,0.02079456]
[1694124701262,3.09147055,26277.0,26276.0,0.02079456]
[1694124701900,0.04698655,26277.0,26276.0,0.02079456]
[1694124702987,0.04698655,26277.0,26276.0,0.02079456]
[1694124707539,0.27289145,26277.0,26276.0,0.02079456]
[1694124717756,0.27289145,26277.0,26276.0,0.13659456]
[1694124717757,0.04698655,26277.0,26276.0,0.13659456]
[1694124722307,0.04698655,26277.0,26276.0,2.16238154]
[1694124722515,0.031,26277.0,26276.0,2.20050464]
[1694124723156,0.031,26277.0,26276.0,2.35284864]
[1694124726119,0.031,26277.0,26276.0,0.79242554]
[1694124726343,0.031,26277.0,26276.0,0.64008154]
[1694124726991,0.031,26277.0,26276.0,0.08079456]
[1694124727433,0.04683316,26277.0,26276.0,0.08079456]
[1694124727649,0.27298524,26277.0,26276.0,0.08079456]
[1694124731442,0.27298524,26277.0,26276.0,0.02079456]
[1694124731642,0.27298524,26277.0,26276.0,0.08079456]
[1694124737195,0.04683316,26277.0,26276.0,0.13572832]
[1694124737399,0.04683316,26277.0,26276.0,0.25152832]
[1694124737610,0.04683316,26277.0,26276.0,0.64008154]
[1694124738046,0.031,26277.0,26276.0,0.64008154]
[1694124739962,0.031,26277.0,26276.0,0.25152832]
[1694124740620,0.04630153,26277.0,26276.0,0.25152832]
[1694124742363,0.031,26277.0,26276.0,0.25152832]
[1694124743940,0.04630153,26277.0,26276.0,0.25152832]
[1694124746003,0.031,26277.0,26276.0,0.25152832]
[1694124752721,0.0437063,26277.0,26276.0,0.25152832]
[1694124757640,0.031,26277.0,26276.0,0.25152832]
[1694124758689,0.031,26277.0,26276.0,0.08079456]
[1694124758690,0.270145,26277.0,26276.0,0.08079456]
[1694124758922,0.270145,26277.0,26276.0,0.13572832]
[1694124759135,0.2828513,26277.0,26276.0,0.13572832]
[1694124761549,0.2828513,26277.0,26276.0,0.09579456]
[1694124761760,0.2828513,26277.0,26276.0,0.13572832]
[1694124762837,0.32024057,26277.0,26276.0,0.09579456]
[1694124763051,0.2828513,26277.0,26276.0,0.08079456]
[1694124763257,0.2828513,26277.0,26276.0,0.09579456]
[1694124763680,0.2828513,26277.0,26276.0,0.08079456]
[1694124764542,0.2828513,26277.0,26276.0,0.09579456]
[1694124767233,0.2828513,26277.0,26276.0,0.08079456]
[1694124774993,0.77296252,26277.0,26276.0,0.00079456]
[1694124775179,1.05569954,26277.0,26276.0,0.00079456]
[1694124775399,0.005,26274.0,26270.0,0.08]
[1694124775640,1.39652828,26273.0,26270.0,0.08]
[1694124775822,3.84974663,26273.0,26270.0,0.08]
[1694124776054,3.9410574,26273.0,26270.0,0.08]
[1694124776270,3.78563611,26273.0,26270.0,0.08]
[1694124776479,4.54687911,26273.0,26270.0,0.08]
[1694124776694,0.23659498,26272.0,26270.0,0.08]
[1694124776920,3.806475,26271.0,26270.0,0.08]
[1694124778237,3.830475,26271.0,26270.0,0.08]
[1694124778657,3.854475,26271.0,26270.0,0.08]
[1694124778876,4.24302822,26271.0,26268.0,0.020301]
[1694124779090,4.24302822,26271.0,26270.0,0.08]
[1694124779737,4.24302822,26271.0,26269.0,0.06]
[1694124779738,0.24911146,26270.0,26269.0,0.06]
[1694124779943,2.92163668,26270.0,26269.0,0.08]
[1694124781452,2.94363668,26270.0,26269.0,0.08]
[1694124781661,2.94363668,26270.0,26268.0,0.020301]
[1694124781662,3.22293814,26270.0,26268.0,0.020301]
[1694124782122,3.34825989,26270.0,26268.0,0.020301]
[1694124782332,2.95964697,26270.0,26268.0,0.020301]
[1694124782570,2.93564697,26270.0,26268.0,0.020301]
[1694124782786,2.95964697,26270.0,26268.0,0.020301]
[1694124783220,0.01249359,26269.0,26268.0,0.020301]
[1694124785057,0.22278076,26269.0,26268.0,0.020301]
[1694124785800,0.24178076,26269.0,26268.0,0.020301]
[1694124786492,0.24178076,26269.0,26268.0,0.040301]
[1694124786707,0.24178076,26269.0,26268.0,0.080301]
[1694124789796,0.84613218,26269.0,26268.0,0.080301]
[1694124790002,0.64884501,26269.0,26268.0,0.020301]
[1694124790214,0.8524584,26269.0,26268.0,0.080301]
[1694124790694,0.6366602,26269.0,26268.0,0.080301]
[1694124790930,2.1593662,26269.0,26268.0,0.080301]
[1694124791378,2.9207192,26269.0,26268.0,0.080301]
[1694124794702,2.9207192,26269.0,26268.0,0.020301]
[1694124794967,2.9207192,26269.0,26268.0,0.080301]
[1694124798034,3.07614049,26269.0,26268.0,0.020301]
[1694124798225,2.9207192,26269.0,26268.0,0.080301]
[1694124804770,2.9437192,26269.0,26268.0,0.080301]
[1694124809849,2.9207192,26269.0,26268.0,0.080301]
[1694124810493,2.747486,26269.0,26268.0,0.080301]
[1694124810930,2.9659079,26269.0,26268.0,0.020301]
[1694124811380,2.747486,26269.0,26268.0,0.020301]
[1694124812023,2.770486,26269.0,26268.0,0.020301]
[1694124812431,2.98959148,26269.0,26268.0,0.020301]
[1694124813598,2.98959148,26269.0,26268.0,0.080301]
[1694124814703,2.98959148,26269.0,26268.0,0.020301]
[1694124814901,2.98959148,26269.0,26268.0,0.080301]
[1694124815479,3.3792044,26269.0,26268.0,0.020301]
[1694124815726,3.78771924,26269.0,26268.0,0.020301]
[1694124815937,3.79059924,26269.0,26268.0,0.020301]
[1694124816161,0.005,26265.0,26264.0,0.020301]
[1694124816377,5.10116722,26265.0,26264.0,0.020301]
[1694124816591,5.40116722,26265.0,26264.0,0.020301]
[1694124817893,5.48116722,26265.0,26264.0,0.020301]
[1694124818119,5.68518568,26265.0,26264.0,0.020301]
[1694124818352,5.50516722,26265.0,26264.0,0.020301]
[1694124818593,5.50516722,26265.0,26263.0,0.020301]
[1694124818815,0.75421613,26264.0,26263.0,0.020301]
[1694124819052,3.03871013,26264.0,26263.0,0.020301]
[1694124819284,3.03338582,26264.0,26263.0,0.020301]
[1694124819498,3.42299874,26264.0,26263.0,0.020301]
[1694124819945,3.05738582,26264.0,26263.0,0.020301]
[1694124820416,3.11784722,26264.0,26263.0,0.020301]
[1694124820856,3.14084722,26264.0,26263.0,0.020301]
[1694124821297,3.16484722,26264.0,26263.0,0.020301]
[1694124821733,3.16484722,26264.0,26260.0,0.02]
[1694124821734,3.16484722,26264.0,26260.0,0.06]
[1694124821946,0.023,26263.0,26261.0,0.06]
[1694124822162,4.19633322,26262.0,26261.0,0.06]
[1694124823408,4.38184485,26262.0,26261.0,0.06]
[1694124824013,4.40584485,26262.0,26261.0,0.06]
[1694124824633,4.42984485,26262.0,26261.0,0.06]
[1694124829357,4.81945777,26262.0,26261.0,0.06]
[1694124830857,4.42984485,26262.0,26261.0,0.06]
[1694124831462,5.00588922,26262.0,26260.0,0.06]
[1694124831666,5.18984414,26262.0,26261.0,0.06]
[1694124831964,5.00588922,26262.0,26261.0,0.06]
[1694124832144,5.26227785,26262.0,26261.0,0.06]
[1694124832346,5.23827785,26262.0,26261.0,0.06]
[1694124832566,5.06328572,26262.0,26261.0,0.06]
[1694124832743,5.24896773,26262.0,26261.0,0.06]
[1694124832946,5.06328572,26262.0,26261.0,0.06]
[1694124833150,5.03928572,26262.0,26260.0,0.06]
[1694124833536,5.27361171,26262.0,26260.0,0.06]
[1694124833737,0.38961292,26261.0,26260.0,0.06]
[1694124833986,3.27890361,26261.0,26260.0,0.06]
[1694124834567,3.27890361,26261.0,26260.0,0.08]
[1694124834773,2.88929069,26261.0,26260.0,0.08]
[1694124834986,2.91329069,26261.0,26260.0,0.08]
[1694124835224,2.93729069,26261.0,26260.0,0.08]
[1694124837305,2.93729069,26261.0,26260.0,0.06]
[1694124838139,2.93729069,26261.0,26260.0,0.08]
[1694124840675,3.32690361,26261.0,26260.0,0.08]
[1694124842538,2.93729069,26261.0,26260.0,0.08]
[1694124843846,2.93729069,26261.0,26259.0,0.328701]
[1694124844054,0.64454514,26260.0,26259.0,0.328701]
[1694124844269,2.92938714,26260.0,26259.0,0.328701]
[1694124846502,2.95138714,26260.0,26259.0,0.328701]
[1694124847128,2.97538714,26260.0,26259.0,0.328701]
[1694124857250,2.330842,26260.0,26259.0,0.444501]
[1694124867586,2.33937271,26260.0,26259.0,0.444501]
[1694124871260,0.05453071,26260.0,26259.0,0.444501]
[1694124872684,0.33191789,26260.0,26259.0,0.136101]
[1694124872925,0.37757328,26260.0,26259.0,0.100301]
[1694124873851,0.46898244,26260.0,26259.0,0.100301]
[1694124874077,0.37757328,26260.0,26259.0,0.100301]
[1694124874304,0.46898442,26260.0,26259.0,0.100301]
[1694124874975,0.37757328,26260.0,26259.0,0.100301]
[1694124875443,0.46898747,26260.0,26259.0,0.100301]
[1694124875694,0.37757328,26260.0,26259.0,0.100301]
[1694124878383,0.35557328,26260.0,26259.0,0.100301]
[1694124878606,0.37957328,26260.0,26259.0,0.100301]
[1694124879062,0.35557328,26260.0,26259.0,0.100301]
[1694124879309,0.33157328,26260.0,26259.0,0.100301]
[1694124879835,0.37957328,26260.0,26259.0,0.100301]
[1694124880062,0.35557328,26260.0,26259.0,0.100301]
[1694124880292,0.37957328,26260.0,26259.0,0.100301]
[1694124886449,0.53819483,26260.0,26259.0,0.100301]
[1694124886654,0.35557328,26260.0,26259.0,0.100301]
[1694124887060,0.42522867,26260.0,26259.0,0.100301]
[1694124887273,0.37722867,26260.0,26259.0,0.100301]
[1694124887476,0.53836876,26260.0,26259.0,0.100301]
[1694124887695,0.56236876,26260.0,26259.0,0.100301]
[1694124888115,0.53836876,26260.0,26259.0,0.100301]
[1694124888355,0.56236876,26260.0,26259.0,0.100301]
[1694124890944,0.37974721,26260.0,26259.0,0.100301]
[1694124892001,0.42522867,26260.0,26259.0,0.100301]
[1694124892659,0.56236357,26260.0,26259.0,0.100301]
[1694124892868,0.56236362,26260.0,26259.0,0.100301]
[1694124893730,0.42522867,26260.0,26259.0,0.100301]
[1694124893928,0.56236285,26260.0,26259.0,0.100301]
[1694124894723,0.42522867,26260.0,26259.0,0.100301]
[1694124894942,0.56236145,26260.0,26259.0,0.100301]
[1694124895317,0.42522867,26260.0,26259.0,0.100301]
[1694124896040,0.81378189,26260.0,26259.0,0.100301]
[1694124896635,0.9509109,26260.0,26259.0,0.100301]
[1694124896838,0.81378189,26260.0,26259.0,0.100301]
[1694124897451,0.95090906,26260.0,26259.0,0.100301]
[1694124897703,0.81378189,26260.0,26259.0,0.100301]
[1694124898498,0.81399707,26260.0,26259.0,0.100301]
[1694124899054,0.95112172,26260.0,26259.0,0.100301]
[1694124900297,0.81399707,26260.0,26259.0,0.100301]
[1694124900655,0.95111998,26260.0,26259.0,0.100301]
[1694124901661,0.95111716,26260.0,26259.0,0.100301]
[1694124901813,0.81399707,26260.0,26259.0,0.100301]
[1694124905014,0.42544385,26260.0,26259.0,0.100301]
[1694124905564,0.23083673,26260.0,26259.0,0.100301]
[1694124905774,0.23083673,26260.0,26259.0,0.020301]
[1694124905775,0.61938995,26260.0,26259.0,0.020301]
[1694124906183,1.10086183,26260.0,26259.0,0.020301]
[1694124906429,1.10086183,26260.0,26259.0,0.100301]
[1694124906830,1.10086183,26260.0,26259.0,0.080301]
[1694124907057,1.10086183,26260.0,26259.0,0.100301]
[1694124907262,1.10086183,26260.0,26259.0,0.020301]
[1694124907464,0.79993587,26260.0,26259.0,0.020301]
[1694124907658,0.82393587,26260.0,26259.0,0.020301]
[1694124907955,0.84793587,26260.0,26259.0,0.020301]
[1694124908413,0.83850841,26260.0,26259.0,0.020301]
[1694124908726,1.04532794,26260.0,26259.0,0.020301]
[1694124910234,1.05032794,26260.0,26259.0,0.020301]
[1694124910642,0.86750841,26260.0,26259.0,0.020301]
[1694124912329,0.86750841,26260.0,26259.0,0.02121261]
[1694124914448,0.84350841,26260.0,26259.0,0.02121261]
[1694124914596,0.86750841,26260.0,26259.0,0.06121261]
[1694124915221,0.84350841,26260.0,26259.0,0.08121261]
[1694124915631,0.86750841,26260.0,26259.0,0.08121261]
[1694124915829,0.92721861,26260.0,26259.0,0.08121261]
[1694124916460,0.92221861,26260.0,26259.0,0.08121261]
[1694124916666,0.92721861,26260.0,26259.0,0.08121261]
[1694124921157,1.05036763,26260.0,26259.0,0.08121261]
[1694124924456,0.86750841,26260.0,26259.0,0.08121261]
[1694124924799,1.05037516,26260.0,26259.0,0.08121261]
[1694124925921,0.86750841,26260.0,26259.0,0.08121261]
[1694124929095,0.65683773,26260.0,26259.0,0.19701261]
[1694124929263,0.57043926,26260.0,26259.0,0.19701261]
[1694124929486,0.38755672,26260.0,26259.0,0.19701261]
[1694124929685,0.57043926,26260.0,26259.0,0.19701261]
[1694124930339,0.38755672,26260.0,26259.0,0.19701261]
[1694124931912,0.2765808,26260.0,26259.0,0.21701261]
[1694124932126,0.048,26260.0,26259.0,0.48774637]
[1694124932336,0.048,26260.0,26259.0,2.45770869]
[1694124932554,0.09143335,26266.0,26264.0,0.13493376]
[1694124932771,0.09143335,26266.0,26265.0,0.13493376]
[1694124932990,0.09137326,26268.0,26266.0,0.13493376]
[1694124933214,0.09137326,26269.0,26268.0,0.13493376]
[1694124933431,0.39578026,26270.0,26269.0,0.13493376]
[1694124933643,0.39578026,26270.0,26269.0,0.25073376]
[1694124933644,0.25872036,26270.0,26269.0,0.25073376]
[1694124934101,0.08378026,26272.0,26271.0,0.23493376]
[1694124934325,0.23880137,26273.0,26271.0,0.35073376]
[1694124934539,0.23880137,26273.0,26272.0,0.1158]
[1694124934746,0.23880137,26273.0,26272.0,0.25073376]
[1694124935809,0.4111797,26277.0,26272.0,0.25073376]
[1694124936020,0.18274653,26275.0,26274.0,0.08]
[1694124936255,0.57079562,26275.0,26274.0,0.08]
[1694124936733,0.63277486,26275.0,26274.0,0.08]
[1694124936941,0.72347689,26275.0,26274.0,0.08]
[1694124937150,0.40434169,26275.0,26274.0,0.08]
[1694124937557,0.58657841,26275.0,26274.0,0.08]
[1694124937780,0.42834169,26275.0,26274.0,0.082]
[1694124938418,0.45234169,26275.0,26274.0,0.084]
[1694124938619,0.66057097,26275.0,26274.0,0.084]
[1694124944489,0.66057097,26275.0,26274.0,0.0847209]
[1694124944490,0.27201775,26275.0,26274.0,0.0847209]
[1694124948600,0.273228,26275.0,26274.0,0.0847209]
[1694124950020,0.273228,26275.0,26274.0,0.2005209]
[1694124957826,0.25743953,26275.0,26274.0,0.2005209]
[1694124958032,0.25622928,26275.0,26274.0,0.2005209]
[1694124958253,0.25742674,26275.0,26274.0,0.2005209]
[1694124958656,0.27324553,26275.0,26274.0,0.2005209]
[1694124959436,0.06501625,26275.0,26274.0,0.2005209]
[1694124959730,0.06501625,26275.0,26274.0,0.25545466]
[1694124960108,0.048,26275.0,26274.0,0.25545466]
[1694124960693,0.04920581,26275.0,26274.0,0.25545466]
[1694124961328,0.34920581,26275.0,26274.0,0.25545466]
[1694124961656,0.34920581,26275.0,26274.0,0.27545466]
[1694124962066,0.34920581,26275.0,26274.0,0.74400788]
[1694124962282,0.348,26275.0,26274.0,0.74400788]
[1694124962684,0.3,26275.0,26274.0,0.74000788]
[1694124963307,0.325,26275.0,26274.0,0.74300788]
[1694124963662,0.315,26275.0,26274.0,0.74200788]
[1694124963870,0.315,26275.0,26274.0,3.72298498]
[1694124964066,0.315,26275.0,26274.0,3.73336498]
[1694124964249,0.315,26275.0,26274.0,1.57082588]
[1694124964450,0.3,26275.0,26274.0,0.80761788]
[1694124964659,0.3,26275.0,26274.0,2.33303388]
[1694124965266,0.3,26275.0,26274.0,2.21723388]
[1694124965474,0.301,26275.0,26274.0,2.34103388]
[1694124966682,0.301,26275.0,26274.0,2.33342388]
[1694124968868,0.301,26275.0,26274.0,2.21762388]
[1694124969067,0.301,26275.0,26274.0,2.33342388]
[1694124971244,0.50580021,26275.0,26274.0,0.26245466]
[1694124972539,0.50580021,26275.0,26274.0,0.28245466]
[1694124972971,0.50580021,26275.0,26274.0,0.26245466]
[1694124974319,0.50580021,26275.0,26274.0,0.28245466]
[1694124975213,0.50580021,26275.0,26274.0,0.26245466]
[1694124979113,0.50580021,26275.0,26274.0,0.14665466]
[1694124979750,0.5223419,26275.0,26274.0,0.26245466]
[1694124980161,0.5223419,26275.0,26274.0,0.25445466]
[1694124980162,0.5213419,26275.0,26274.0,0.25445466]
[1694124980585,0.5213419,26275.0,26274.0,0.25145466]
[1694124980790,0.5363419,26275.0,26274.0,0.25345466]
[1694124981393,0.5453419,26275.0,26274.0,0.25445466]
[1694124982039,0.5363419,26275.0,26274.0,0.25345466]
[1694124982248,0.5453419,26275.0,26274.0,0.25445466]
[1694124982486,0.52880021,26275.0,26274.0,0.25445466]
[1694124982937,0.54533943,26275.0,26274.0,0.25445466]
[1694124983206,0.324,26275.0,26274.0,0.25445466]
[1694124984994,0.56804879,26275.0,26274.0,0.25445466]
[1694124985220,0.56804879,26275.0,26274.0,0.13865466]
[1694124985432,0.58460273,26275.0,26274.0,0.13865466]
[1694124992196,0.67557629,26275.0,26274.0,0.13865466]
[1694124992627,0.67496237,26275.0,26274.0,0.13865466]
[1694124993468,0.67496237,26275.0,26274.0,0.13884004]
[1694124994341,0.58398881,26275.0,26274.0,0.13884004]
[1694124994560,0.67496237,26275.0,26274.0,0.13884004]
[1694124996130,0.66996237,26275.0,26274.0,0.13884004]
[1694124997294,0.80643887,26275.0,26274.0,0.13884004]
[1694124997560,0.66996237,26275.0,26274.0,0.13884004]
[1694124997763,0.80643887,26275.0,26274.0,0.13884004]
[1694124999334,0.71546531,26275.0,26274.0,0.13884004]
[1694125003472,0.67026508,26275.0,26274.0,0.13884004]
[1694125005398,0.57898881,26275.0,26274.0,0.13884004]
[1694125005606,0.57898881,26275.0,26274.0,0.25464004]
[1694125006457,0.33494002,26275.0,26274.0,0.25464004]
[1694125009138,0.33494002,26275.0,26274.0,1.01584804]
[1694125009350,0.319,26275.0,26274.0,1.77705604]
[1694125009560,0.319,26275.0,26274.0,2.53826404]
[1694125010172,0.3327062,26275.0,26274.0,1.77705604]
[1694125011853,0.3327062,26275.0,26274.0,2.16560926]
[1694125012259,0.3327062,26275.0,26274.0,0.64319326]
[1694125012463,0.3327062,26275.0,26274.0,0.25464004]
[1694125013761,0.319,26275.0,26274.0,0.25464004]
[1694125014395,0.33269138,26275.0,26274.0,0.25464004]
[1694125015349,0.57150958,26275.0,26274.0,0.25464004]
[1694125026299,0.57150958,26275.0,26274.0,1.01584804]
[1694125027590,0.5578182,26275.0,26274.0,1.01584804]
[1694125028053,0.57138823,26275.0,26274.0,1.01584804]
[1694125028269,0.57138823,26275.0,26274.0,1.77705604]
[1694125029384,0.33257003,26275.0,26274.0,3.08681726]
[1694125029617,0.09127627,26281.0,26280.0,0.13493376]
[1694125029842,0.1364765,26282.0,26280.0,0.13493376]
[1694125029843,0.09127627,26282.0,26280.0,0.13493376]
[1694125030089,0.22775277,26282.0,26281.0,0.1358]
[1694125030577,0.22775277,26282.0,26281.0,0.13669752]
[1694125030776,0.09127627,26282.0,26281.0,0.25163128]
[1694125031000,0.11527627,26282.0,26281.0,0.25163128]
[1694125031218,0.12796622,26282.0,26281.0,0.25163128]
[1694125032539,0.10396622,26282.0,26281.0,0.25163128]
[1694125032777,0.03668995,26282.0,26281.0,0.25363128]
[1694125033043,0.06068995,26282.0,26281.0,0.25563128]
[1694125037112,0.06068995,26282.0,26281.0,0.6441845]
[1694125037569,0.048,26282.0,26281.0,0.6441845]
[1694125037832,0.06066028,26282.0,26281.0,1.4051905]
[1694125038013,0.18223672,26288.0,26281.0,1.4051905]
[1694125038014,0.0201,26290.0,26289.0,0.13493376]
[1694125038242,0.0201,26290.0,26289.0,2.80580898]
[1694125038403,0.0201,26290.0,26289.0,3.00883515]
[1694125038603,0.0201,26294.0,26293.0,0.15454985]
[1694125038775,0.0201,26294.0,26293.0,0.27034985]
[1694125039726,0.0201,26294.0,26293.0,0.27734985]
[1694125039928,0.02038764,26294.0,26293.0,0.27734985]
[1694125040460,0.02138764,26294.0,26293.0,1.05000785]
[1694125040664,0.02138764,26294.0,26293.0,3.26010017]
[1694125040868,0.02138764,26294.0,26293.0,3.25710017]
[1694125041078,0.0211,26294.0,26293.0,0.36436985]
[1694125041281,0.0211,26294.0,26293.0,0.16654985]
[1694125041713,0.03262553,26294.0,26293.0,0.16654985]
[1694125041927,0.03262553,26294.0,26293.0,0.17354985]
[1694125042145,0.03262553,26294.0,26293.0,0.28934985]
[1694125042359,0.0211,26294.0,26293.0,0.28234985]
[1694125042574,0.0211,26294.0,26293.0,0.29022791]
[1694125044386,0.0211,26294.0,26293.0,0.27061182]
[1694125052552,0.0211,26294.0,26293.0,0.65916504]
[1694125052722,0.0211,26294.0,26293.0,2.18048104]
[1694125052870,0.0211,26294.0,26293.0,3.00665904]
[1694125053076,0.0211,26294.0,26293.0,2.18048104]
[1694125053943,0.0211,26294.0,26293.0,0.65916504]
[1694125054744,0.0211,26294.0,26293.0,1.05746504]
[1694125054952,0.0211,26294.0,26293.0,3.60643904]
[1694125055172,0.0211,26294.0,26293.0,2.83744104]
[1694125055424,0.0211,26294.0,26293.0,2.75878104]
[1694125055904,0.0211,26294.0,26293.0,3.51943904]
[1694125056581,0.0211,26294.0,26293.0,2.36048104]
[1694125056798,0.0211,26294.0,26293.0,2.75878104]
[1694125057020,0.0211,26294.0,26293.0,2.36048104]
[1694125057728,0.0211,26294.0,26293.0,2.75878104]
[1694125057930,0.0211,26294.0,26293.0,3.51943904]
[1694125059107,0.0211,26294.0,26293.0,2.75878104]
[1694125059964,0.0211,26294.0,26293.0,0.83916504]
[1694125060142,0.0211,26294.0,26293.0,1.59982304]
[1694125060280,0.0211,26294.0,26293.0,1.41982304]
[1694125060478,0.0211,26294.0,26293.0,2.36048104]
[1694125062252,0.0211,26294.0,26293.0,3.12113904]